Workbook

Sheet Capacidad Jurídica
A1: FECHA Y HORA DE CIERRE DEL PROCESO: 17 DE SEPTIEMBRE DE 2025 A LAS 2:00 PM
C2: OFERENTE 2 | H2: OFERENTE 3
A3: REQUISITOS DE PARTICIPACIÓN Y HABILITACIÓN JURÍDICA | C3: UNION TEMPORAL GESTIÓN INTEGRAL C5 (2 INTEGRANTES) RAD 20251005956 | F3: OBSERVACIÓN | G3: REQUERIDO | H3: UNIÓN TEMPORAL SEGURIDAD VIPE 2025 (4 INTEGRANTES) RAD 20251005957 | M3: OBSERVACIÓN | N3: REQUERIDO
C4: UNION ELECTRICA S.A. (4%) NIT: 890.937.250-6 | D4: SEGURITECH COLOMBIA S.A.S (96%) NIT: 901.202.687-5 | E4: FOLIO FÍSICO N° REFOLIACIÓN ESU | H4: ESDRAS MD INGENIERIA S.A.S NIT: 900.595.482-4 (25%) | I4: INGENIERIA Y TELEMATICA G&C NIT: 800.072.172-9 (25%) | J4: VIOTEC S.A.S NIT: 900.317.089-1 (25%) | K4: PAECIA S.A.S NIT: 890.929.487-0 (25%) | L4: FOLIO FÍSICO N° REFOLIACIÓN ESU
A5: UBICACIÓN PLIEGO | B5: DESCRIPCIÓN REQUISITO | C5: APORTADO | D5: APORTADO | H5: APORTADO | I5: APORTADO | J5: APORTADO | K5: APORTADO
A6: 3.2.1 (ANEXO N° 1) | B6: Carta de presentación: | C6: SI | E6: 3-5 | F6: R. L UT Diana Carolina Lancheros Paredes CC. 52.844.405 R.L.S UT Carlos Frank Benítez Rodríguez CC,98.702.829 | G6: NO | H6: SI | L6: 1055-1057 | M6: R.L. Cesar Augusto Peñaloza Correa CC. 10186775 R.L.S. Jorge Iván Arroyave Zapata CC. 89009911 | N6: NO
A7: 3.2.2 | B7: Copia de la cédula | C7: SI | E7: 14, 16 y 18 | F7: R.L UNIÓN ELÉCTRICA: Julio Cesar Correa Mazo C.C. 18.464.212 R.L SEGURITECH: Diana Carolina Lancheros Paredes CC. 52.844.405 | G7: NO | H7: SI | I7: SI | J7: SI | K7: SI | L7: 1059-1062 | M7: R.L. ESDRAS: Lady Vanessa Pabón Triana CC. 67021471 R.L: GYC: Cesar Augusto Peñaloza Correa CC. 10186775 R.L. VIOTEC: Jorge Iván Arroyave Zapata CC. 89009911 R.L. PAECIA: Andrés Felipe Espinosa Arango CC. 71792037 | N7: NO
A8: 3.2.3 | B8: Certificado de existencia y representación legal (Con fecha no anterior a 1 mes a la fecha del cierre). | C8: SI | D8: SI | E8: UE 28-38R/SC40-44REVERSO | F8: UE:22/08/2025 SC:05/09/2025 | G8: NO | H8: SI | I8: SI | J8: SI | K8: SI | L8: ESDRAS:1065-1072 VIOTEC: 1076-1085 GYC: 1087-1098 PAECIA: 1100-1107 | M8: ESDRAS:09/09/2025 VIOTEC: 04/09/2025 GYC:25/08/2025 PAECIA:01/09/2025 | N8: NO
B9: Certificado de autorización para contratar, cuando aplique. | C9: N/A | D9: SI | E9: UE 31/SC: 46-47 | F9: Ninguna | G9: NO | H9: SI | I9: N/A | J9: N/A | K9: N/A | L9: ESDRAS:1073-1074 GYC: N/A VIOTEC: N/A PAECIA: N/A | M9: Ninguna | N9: NO
A10: 3.2.4 | B10: Registro Único Tributario-RUT | C10: SI | D10: SI | E10: UE 50-54/SC 56-58 | F10: Ninguna | G10: NO | H10: SI | I10: SI | J10: SI | K10: SI | L10: ESDRAS: 119 VIOTEC: 1121 GYC: 1117 PAECIA: 1123 | M10: Ninguna | N10: NO
A11: 3.2.5 (ANEXO N° 3) | B11: Acreditación Certificación de Pagos de sistema de Seguridad Social Integral y Parafiscales | C11: SI | D11: SI | E11: UE 61-73/SC 75-81 | F11: UE: Revisora fiscal ELIANA MEJÍA BEDOYA CC. 43115120 T.P. 181150-T JCC: 28/08/2025 SEG: Revisor fiscal JAVIER ISIDRO REYES PEDRAZA CC. 80773731 T.P. 246176-T JCC: 23/07/2025 | G11: NO | H11: SI | I11: SI | J11: SI | K11: SI | L11: ESDRAS: 1135-1138 VIOTEC: 1125-1128 GYC: 1130-1133 PAECIA: 1140-1143 | M11: ESDRAS: Revisora fiscal Shirley Niño Camacho CC. 29331625 TP. 95213-T JCC14/08/2025 VIOTEC: Revisor fiscal Wilmer Alexander Alonso Gómez CC. 1015405577 TP. 220017-T JCC: 05/09/2025 GYC: Revisor fiscal Juan Carlos Martínez Borre CC. 19752550 TP. 124605-T JCC: 02/09/2025 PAECIA: Revisor fiscal Horacio Guardia Machado CC. 15401805 TP. 46089-T JCC: 15/08/2025 | N11: NO
A12: 3.2.6 (+ADENDA N°3): A continuación se relacionan los códigos del 1 al 40 (ANEXO N°4) | B12: Registro Único de Proponentes – RUP: Para el caso de proponentes plurales, el proponente en su conjunto deberá acreditar estar inscrito en mínimo 15 de los códigos descritos. | C12: SI | D12: SI | E12: UNIÓN ELÉCTRICA RUP (86-258) SEGURITECH RUP(259-312) ANEXO N°4:84-85/260-262 | F12: UE37/ SEG 40 CÓDIGOS REPORTADOS | G12: NO | H12: SI | I12: SI | J12: SI | K12: SI | L12: ESDRAS: 1149 - 1179 G&C SAS: 1181 - 1230 VIOTEC: 1232 - 1262 PAECIA: 1264 - 1394 ANEXO N°:1145-147 | M12: ESDRAS:31 G&C SAS:39 VIOTEC: 33 PAECIA:33 CÓDIGOS REPORTADOS | N12: NO
A13: 1 | B13: 26121600: Cables eléctricos y accesorios | C13: SI | D13: SI | E13: UE(88)/SEG(266) | F13: Ninguna | G13: NO | H13: SI | I13: SI | J13: SI | K13: SI | L13: ESDRAS: 1151 G&C SAS: 1185 VIOTEC SAS:1233 REVERSO PAECIA SAS: 1268 | M13: Ninguna | N13: NO
A14: =A13+1 -> 2 | B14: 30161500: Materiales para acabados de paredes | C14: SI | D14: SI | E14: UE(89)SEG(267) | F14: Ninguna | G14: NO | H14: SI | I14: SI | J14: SI | K14: SI | L14: ESDRAS: 1151 REVERSO G&C SAS: 1185 REVERSO VIOTEC SAS:1234 PAECIA SAS: 1269 | M14: Ninguna | N14: NO
A15: =A14+1 -> 3 | B15: 30161700: Suelos | C15: SI | D15: SI | E15: UE(89)SEG(267) | F15: Ninguna | G15: NO | H15: SI | I15: SI | J15: SI | K15: SI | L15: ESDRAS: 1151 REVERSO G&C SAS: 1185 REVERSO VIOTEC SAS:1234 PAECIA SAS: 1269 | M15: Ninguna | N15: NO
A16: =A15+1 -> 4 | B16: 30162400: Muros divisorios | C16: SI | D16: SI | E16: UE(89)SEG(267) | F16: Ninguna | G16: NO | H16: SI | I16: SI | J16: SI | K16: SI | L16: ESDRAS: 1151 REVERSO G&C SAS: 1185 REVERSO VIOTEC SAS:1234 PAECIA SAS: 1269 | M16: Ninguna | N16: NO
A17: 5 | B17: 30171500: Puertas | C17: SI | D17: SI | E17: UE(89)SEG(267) | F17: Ninguna | G17: NO | H17: SI | I17: SI | J17: SI | K17: SI | L17: ESDRAS: 1151 REVERSO G&C SAS: 1185 REVERSO VIOTEC SAS:1234 PAECIA SAS: 1269 | M17: Ninguna | N17: NO
A18: 6 | B18: 30171600: Ventanas | C18: SI | D18: SI | E18: UE(89)SEG(268) | F18: Ninguna | G18: NO | H18: SI | I18: SI | J18: NO | K18: SI | L18: ESDRAS: 1151 REVERSO G&C SAS: 1186 VIOTEC SAS: NA PAECIA SAS: 1269 | M18: Ninguna | N18: NO
A19: 7 | B19: 301916 00: Escaleras y accesorios de andamiaje | C19: SI | D19: SI | E19: UE(89)SEG(268) | F19: Ninguna | G19: NO | H19: SI | I19: SI | J19: NO | K19: SI | L19: ESDRAS: 1151 REVERSO G&C SAS: 1186 VIOTEC SAS: NA PAECIA SAS: 1269 | M19: Ninguna | N19: NO
A20: 8 | B20: 31211500: Pinturas y tapa poros | C20: SI | D20: SI | E20: UE(89)SEG(268) | F20: Ninguna | G20: NO | H20: NO | I20: SI | J20: NO | K20: SI | L20: ESDRAS: NA G&C SAS: 1186 VIOTEC SAS:NA PAECIA SAS: 1270 REVERSO | M20: Ninguna | N20: NO
A21: 9 | B21: 31211900: Aplicadores de pintura y accesorios | C21: SI | D21: SI | E21: UE(89)SEG(268) | F21: Ninguna | G21: NO | H21: NO | I21: NO | J21: NO | K21: SI | L21: ESDRAS: NA G&C SAS: NA VIOTEC SAS: NA PAECIA SAS: 1270 REVERSO | M21: Ninguna | N21: NO
A22: 10 | B22: 39111500: Iluminación de interiores y artefactos | C22: SI | D22: SI | E22: UE(89)SEG(269) | F22: Ninguna | G22: NO | H22: SI | I22: SI | J22: NO | K22: SI | L22: ESDRAS: 1151 REVERSO G&C SAS: 1186 REVERSO VIOTEC SAS: NA PAECIA SAS: 1271 REVERSO | M22: Ninguna | N22: NO
A23: 11 | B23: 40101700: Enfriamiento | C23: SI | D23: SI | E23: UE(90)SEG(270) | F23: Ninguna | G23: NO | H23: SI | I23: SI | J23: SI | K23: SI | L23: ESDRAS: 1152 G&C SAS: 1187 REVERSO VIOTEC SAS:1234 REVERSO PAECIA SAS: 1272 | M23: Ninguna | N23: NO
A24: 12 | B24: 43201800: Dispositivos de almacenamiento | C24: SI | D24: SI | E24: UE(90)SEG(271) | F24: Ninguna | G24: NO | H24: SI | I24: SI | J24: SI | K24: NO | L24: ESDRAS: 1152 G&C SAS: 1188 REVERSO VIOTEC SAS:1235 PAECIA SAS: NA | M24: Ninguna | N24: NO
A25: 13 | B25: 43211700: Dispositivos informáticos de entrada de datos | C25: SI | D25: SI | E25: UE(90)SEG(272) | F25: Ninguna | G25: NO | H25: NO | I25: SI | J25: SI | K25: SI | L25: ESDRAS: NA G&C SAS: 1188 REVERSO VIOTEC SAS:1235 PAECIA SAS: 1273 REVERSO | M25: Ninguna | N25: NO
A26: 14 | B26: 43212200: Sistemas de manejo de almacenamiento de datos de computador | C26: SI | D26: SI | E26: UE(90)SEG(272) | F26: Ninguna | G26: NO | H26: NO | I26: SI | J26: SI | K26: SI | L26: ESDRAS: NA G&C SAS: 1188 REVERSO VIOTEC SAS:1235 PAECIA SAS: 1273 REVERSO | M26: Ninguna | N26: NO
A27: 15 | B27: 43221700: Equipo fijo de red y componentes | C27: SI | D27: SI | E27: UE(90)SEG(272) | F27: Ninguna | G27: NO | H27: NO | I27: SI | J27: SI | K27: SI | L27: ESDRAS: NA G&C SAS: 1189 VIOTEC SAS:1235 REVERSO PAECIA SAS: 1273 REVERSO | M27: Ninguna | N27: NO
A28: 16 | B28: 43222600: Equipos de servicios de red | C28: SI | D28: SI | E28: UE(90)SEG(272) | F28: Ninguna | G28: NO | H28: SI | I28: SI | J28: SI | K28: SI | L28: ESDRAS: 1152 G&C SAS: 1189 VIOTEC SAS:1235 REVERSO PAECIA SAS: 1273 REVERSO | M28: Ninguna | N28: NO
A29: 17 | B29: 43223300: Dispositivos y equipos para instalación de conectividad de redes y datacom | C29: SI | D29: SI | E29: UE(90)SEG(272) | F29: Ninguna | G29: NO | H29: NO | I29: SI | J29: SI | K29: SI | L29: ESDRAS: NA G&C SAS: 1189 VIOTEC SAS:1235 REVERSO PAECIA SAS: 1274 | M29: Ninguna | N29: NO
A30: 18 | B30: 43232800: Software de administración de redes | C30: SI | D30: SI | E30: UE(90)SEG(272) | F30: Ninguna | G30: NO | H30: NO | I30: SI | J30: SI | K30: NO | L30: ESDRAS: NA G&C SAS: 1189 REVERSO VIOTEC SAS:1235 REVERSO PAECIA SAS: NA | M30: Ninguna | N30: NO
A31: 19 | B31: 43233200: Software de seguridad y protección | C31: SI | D31: SI | E31: UE(90)SEG(272) | F31: Ninguna | G31: NO | H31: NO | I31: SI | J31: SI | K31: NO | L31: ESDRAS: NA G&C SAS: 1189 REVERSO VIOTEC SAS:1235 REVERSO PAECIA SAS: NA | M31: Ninguna | N31: NO
A32: 20 | B32: 45121500: Cámaras | C32: SI | D32: SI | E32: UE(91)SEG(273) | F32: Ninguna | G32: NO | H32: SI | I32: SI | J32: SI | K32: SI | L32: ESDRAS: 1152 G&C SAS: 1189 REVERSO VIOTEC SAS:1236 PAECIA SAS: 1274 | M32: Ninguna | N32: NO
A33: 21 | B33: 45121600; Accesorios para cámaras | C33: SI | D33: SI | E33: UE(91)SEG(273) | F33: Ninguna | G33: NO | H33: SI | I33: SI | J33: SI | K33: SI | L33: ESDRAS: 1152 G&C SAS: 1190 VIOTEC SAS:1236 PAECIA SAS: 1274 | M33: Ninguna | N33: NO
A34: 22 | B34: 46171600: Equipo de vigilancia y detección | C34: SI | D34: SI | E34: UE(91)SEG(273) | F34: Ninguna | G34: NO | H34: SI | I34: SI | J34: SI | K34: SI | L34: ESDRAS: 1152 G&C SAS: 1190 VIOTEC SAS:1236 PAECIA SAS: 1274 | M34: Ninguna | N34: NO
A35: 23 | B35: 72102900: Servicios de mantenimiento y reparación de instalaciones | C35: SI | D35: SI | E35: UE(91)SEG(274) | F35: Ninguna | G35: NO | H35: SI | I35: SI | J35: SI | K35: NO | L35: ESDRAS: 1152 REVERSO G&C SAS: 1191 VIOTEC SAS:1236 REVERSO PAECIA SAS: NA | M35: Ninguna | N35: NO
A36: 24 | B36: 72103300: Servicios de mantenimiento y reparación de infraestructura | C36: SI | D36: SI | E36: UE(91)SEG(274) | F36: Ninguna | G36: NO | H36: SI | I36: SI | J36: SI | K36: SI | L36: ESDRAS: 1152 REVERSO G&C SAS: 1191 VIOTEC SAS:1236 REVERSO PAECIA SAS: 1275 | M36: Ninguna | N36: NO
A37: 25 | B37: 72141500: Servicios de preparación de tierras | C37: SI | D37: SI | E37: UE(91)SEG(274) | F37: Ninguna | G37: NO | H37: SI | I37: SI | J37: SI | K37: SI | L37: ESDRAS: 1153 G&C SAS: 1191 REVERSO VIOTEC SAS:1235 REVERSO PAECIA SAS: 1275 REVERSO | M37: Ninguna | N37: NO
A38: 26 | B38: 72151600: Servicios de sistemas especializados | C38: SI | D38: SI | E38: UE(91)SEG(275) | F38: Ninguna | G38: NO | H38: SI | I38: SI | J38: SI | K38: SI | L38: ESDRAS: 1153 G&C SAS: 1191 REVERSO VIOTEC SAS:1236 REVERSO PAECIA SAS: 1275 REVERSO | M38: Ninguna | N38: NO
A39: 27 | B39: 80101600: Gerencia de proyectos | C39: SI | D39: SI | E39: UE(92)SEG(276) | F39: Ninguna | G39: NO | H39: SI | I39: SI | J39: SI | K39: SI | L39: ESDRAS: 1154 G&C SAS: 1193 VIOTEC SAS:1237 PAECIA SAS: 1276 REVERSO | M39: Ninguna | N39: NO
A40: 28 | B40: 81101700: Ingeniería eléctrica y electrónica | C40: SI | D40: SI | E40: UE(92)SEG(276) | F40: Ninguna | G40: NO | H40: SI | I40: SI | J40: SI | K40: SI | L40: ESDRAS: 1154 G&C SAS: 1193 VIOTEC SAS:1237 PAECIA SAS: 1277 | M40: Ninguna | N40: NO
A41: 29 | B41: 81111500: Ingeniería de software o hardware | C41: SI | D41: SI | E41: UE(92)SEG(276) | F41: Ninguna | G41: NO | H41: SI | I41: SI | J41: SI | K41: NO | L41: ESDRAS: 1154 G&C SAS: 1193 VIOTEC SAS:1237 REVERSO PAECIA SAS: NA | M41: Ninguna | N41: NO
A42: 30 | B42: 81111800: Servicios de sistema y administración | C42: SI | D42: SI | E42: UE(92)SEG(276) | F42: Ninguna | G42: NO | H42: SI | I42: SI | J42: SI | K42: SI | L42: ESDRAS: 1154 G&C SAS: 1193 REVERSO VIOTEC SAS:1237 REVERSO PAECIA SAS: 1277 | M42: Ninguna | N42: NO
A43: 31 | B43: 81112200: Mantenimiento y soporte de software | C43: SI | D43: SI | E43: UE(92)SEG(276) | F43: Ninguna | G43: NO | H43: NO | I43: SI | J43: SI | K43: NO | L43: ESDRAS: NA G&C SAS: 1193 REVERSO VIOTEC SAS:123 67 REVERSO PAECIA SAS: NA | M43: Ninguna | N43: NO
A44: 32 | B44: 92121700: Servicios de sistemas de seguridad | C44: SI | D44: SI | E44: UE(92)SEG(277) | F44: Ninguna | G44: NO | H44: SI | I44: SI | J44: SI | K44: NO | L44: ESDRAS: 1154 REVERSO G&C SAS: 1194 VIOTEC SAS:1237 REVERSO PAECIA SAS: NA | M44: Ninguna | N44: NO
A45: 33 | B45: 72121400: Servicios de construcción de edificios públicos especializados | C45: SI | D45: SI | E45: UE(96)SEG(274) | F45: Ninguna | G45: NO | H45: SI | I45: SI | J45: SI | K45: SI | L45: ESDRAS: 1152 REVERSO G&C SAS: 1191 REVERSO VIOTEC SAS:1236 REVERSO PAECIA SAS: 1275 REVERSO | M45: Ninguna | N45: NO
A46: 34 | B46: 72141100: Servicios de pavimentación y superficies de edificios de infraestructura | C46: SI | D46: SI | E46: UE(91)SEG(274) | F46: Ninguna | G46: NO | H46: SI | I46: SI | J46: SI | K46: SI | L46: ESDRAS: 1152 REVERSO G&C SAS: 1191 REVERSO VIOTEC SAS:1236 REVERSO PAECIA SAS: 1275 REVERSO | M46: Ninguna | N46: NO
A47: 35 | B47: 72121000: Servicios de construcción de edificios industriales y bodegas nuevas | C47: NO | D47: SI | E47: SEG(274) | F47: Ninguna | G47: NO | H47: SI | I47: SI | J47: NO | K47: SI | L47: ESDRAS: 1152 REVERSO G&C SAS: 1191 REVERSO VIOTEC SAS:NA PAECIA SAS: 1275 | M47: Ninguna | N47: NO
A48: 36 | B48: 72121100: Servicios de construcción de edificios comerciales y de oficina | C48: SI | D48: SI | E48: UE(91)SEG(274) | F48: Ninguna | G48: NO | H48: SI | I48: SI | J48: SI | K48: SI | L48: ESDRAS: 1152 REVERSO G&C SAS: 1191 REVERSO VIOTEC SAS:1236 REVERSO PAECIA SAS: 1275 | M48: Ninguna | N48: NO
A49: 37 | B49: 72151200: Servicios de construcción y mantenimiento de HVAC calefacción y enfriamiento y aire acondicionado | C49: SI | D49: SI | E49: UE(91)SEG(274) | F49: Ninguna | G49: NO | H49: SI | I49: SI | J49: NO | K49: SI | L49: ESDRAS: 1153 G&C SAS: 1191 REVERSO VIOTEC SAS:NA PAECIA SAS: 1275 REVERSO | M49: Ninguna | N49: NO
A50: 38 | B50: 72151300: Servicios de pintura e instalación de papel de colgadura | C50: NO | D50: SI | E50: SEG(275) | F50: Ninguna | G50: NO | H50: SI | I50: SI | J50: SI | K50: SI | L50: ESDRAS: 1153 G&C SAS: 1191 REVERSO VIOTEC SAS:1236 REVERSO PAECIA SAS: 1275 REVERSO | M50: Ninguna | N50: NO
A51: 39 | B51: 72151400: Servicios de construcción de recubrimientos de muros | C51: NO | D51: SI | E51: SEG(275) | F51: Ninguna | G51: NO | H51: SI | I51: SI | J51: SI | K51: SI | L51: ESDRAS: 1153 G&C SAS: 1191 REVERSO VIOTEC SAS:1236 REVERSO PAECIA SAS: 1275 REVERSO | M51: Ninguna | N51: NO
A52: 40 | B52: 72151500: Servicios de sistemas eléctricos | C52: SI | D52: SI | E52: UE(91)SEG(275) | F52: Ninguna | G52: NO | H52: SI | I52: SI | J52: SI | K52: SI | L52: ESDRAS: 1153 G&C SAS: 1191 REVERSO VIOTEC SAS:1236 REVERSO PAECIA SAS: 1275 REVERSO | M52: Ninguna | N52: NO
A53: 3.2.8 (+ADENDA N°3) | B53: Garantía para cubrir los riesgos derivados del incumplimiento del ofrecimiento: Se deberá anexar garantía de seriedad de la propuesta, a favor de la “EMPRESA PARA LA SEGURIDAD Y SOLUCIONES URBANAS – ESU”, con NIT. 890.984.761-8, constituida ante una compañía de seguros o entidad bancaria legalmente establecida en Colombia, o patrimonio autónomo, y que contenga los siguientes aspectos: ● Valor asegurado: Equivalente al diez por ciento (10%) del presupuesto oficial correspondiente a la primera orden de compra, esto es $180.996.349.096 ● Vigencia: Tres (3) meses, contados a partir de la fecha de cierre del proceso contractual. ● Tomador y/o afianzado: La garantía deberá tomarse con el nombre o razón social que figura en el Certificado de Existencia y Representación Legal expedido por la Cámara de Comercio. ● Asegurado y beneficiario: Empresa para la Seguridad y Soluciones Urbanas – ESU. Objeto y numero del proceso. ● Firmas del tomador y de la aseguradora que la expide. | C53: SI | E53: 314-327 | F53: N° PÓLIZA: 18-44-101108882 SEGUROS DEL ESTADO S.A. VALOR: $18.099.634.909,60 VIGENCIA: DEL 10/09/2025 AL 31/12/2025 COASEGURO: SEGUROS DEL ESTADO S.A. 50% COMPAÑÍA MUNDIAL DE SEGUROS S.A. 50% Póliza verificada en https:https://consultapoliza.segurosdelestado.com/consultapoliza/ | G53: NO | H53: SI | L53: 1441-1473 | M53: N° PÓLIZA:NB-100404363 COMPAÑÍA MUNDIAL DE SEGUROS S.A. VALOR $18.099.634.909,60 VIGENCIA: DEL 15/09/2025 AL 30/12/2025 (ANEXO 4) COASEGURO: BERKLEY INTERNATIONAL SEGUROS COLOMBIA S.A. 50% COMPAÑÍA MUNDIAL DE SEGUROS S.A. 50% https://productos.mundialseguros.com.co/ | N53: NO
A54: 3.2.9 | B54: Aval de la propuesta: Profesional en Ingeniería eléctrica, electrónica, sistemas, telemática, informática, telecomunicaciones y afines/Ingeniería civil | C54: SI | E54: 3-11/330-336 | F54: Diego Alberto Osorio Benítez CC.70.085.746 Ingeniero Civil T.P N° 05202-58961 Vigencia: 02/09/2025 Lucas Toro Morales CC. 71270457 Ingeniero Electrónico T.P N° AN206-96710 Vigencia: 02/09/2025 seis (6) meses | G54: NO | H54: SI | L54: 1055-1057/1475-1480 | M54: Cesar Augusto Peñaloza Correa CC.10186775 Ingeniero Electrónico T.P CN206-54885 Vigencia: 07/06/2025 Angie Paola Urrego Durango CC. 1001140303 Ingeniero Civil M.P 011037-06499292 Vigencia: 15/08/2025 | N54: NO
A55: 3.2.10 | B55: Certificado de Procuraduría General de la Nación (Con fecha no anterior a 1 mes de la fecha del cierre). | C55: SI | D55: SI | E55: UE: 433-434 SC: 436-437 | F55: UE: 01/09/2025 SC: 01/09/2025 | G55: NO | H55: SI | I55: SI | J55: SI | K55: SI | L55: ESDRAS: 1415-1416 G&C SAS:1407-1408 VIOTEC SAS: 1399-1400 PAECIA SAS: 1423-1424 | M55: ESDRAS: 05/09/2025 G&C SAS: 01/09/2025 VIOTEC SAS: 01/09/2025 PAECIA SAS: 05-04/09/2025 | N55: NO
A56: 3.2.11 | B56: Certificado de Contraloría General de la Nación (Con fecha no anterior a 1 mes de la fecha del cierre). | C56: SI | D56: SI | E56: UE: 424-425 SC: 427-428 | F56: UE: 01/09/2025 SC: 01/09/2025 | G56: NO | H56: SI | I56: SI | J56: SI | K56: SI | L56: ESDRAS: 1413-1414 G&C SAS: 1405-1406 VIOTEC SAS: 1397-1398 PAECIA SAS: 1421-1422 | M56: ESDRAS: 05/09/2025 G&C SAS: 25/08/2025 VIOTEC SAS: 25/08/2025 PAECIA SAS: 05-04/09/2025 | N56: NO
A57: 3.2.12 | B57: Certificado de antecedentes judiciales (Con fecha no anterior a 1 mes de la fecha del cierre). | C57: SI | D57: SI | E57: UE: 442 SC: 444 | F57: UE: 01/09/2025 SC: 01/09/2025 | G57: NO | H57: SI | I57: SI | J57: SI | K57: SI | L57: ESDRAS: 1417 G&C SAS: 1409 VIOTEC SAS: 1401 PAECIA SAS: 1425 | M57: ESDRAS: 05/09/2025 G&C SAS: 25/08/2025 VIOTEC SAS: 25/08/2025 PAECIA SAS: 04/09/2025 | N57: NO
A58: 3.2.13 | B58: Certificado del Registro Nacional de Medidas Correctivas-RNMC, donde conste que a la persona o representante legal no le han sido impuestas multas por infracción del Código de Policía o, si presenta multas (Con fecha no anterior a 1 mes de la fecha del cierre). | C58: SI | D58: SI | E58: UE: 449-450 SC: 452-453 | F58: UE: 02-01/09/2025 SC: 01/09/2025 | G58: NO | H58: SI | I58: SI | J58: SI | K58: SI | L58: ESDRAS: 1418-1419 G&C SAS: 1410-1411 VIOTEC SAS: 1404-1403 PAECIA SAS: 1426-1427 | M58: ESDRAS: 05/09/2025 G&C SAS: 25/08/2025 VIOTEC SAS: 25/08/2025 PAECIA SAS: 04/09/2025 | N58: NO
A59: 3.2.14 | B59: Certificado de la Consulta de Inhabilidades de la Ley 1918 de 2018 y Decreto 753 de 2019 del representante legal de la empresa (Con fecha no anterior a 1 mes de la fecha del cierre). | C59: SI | D59: SI | E59: UE: 378 SC: 380 | F59: UE: 01/09/2025 SC: 04/09/2025 | G59: NO | H59: SI | I59: SI | J59: SI | K59: SI | L59: ESDRAS: 1485 G&C SAS: 1482 VIOTEC SAS: 1483 PAECIA SAS: 1484 | M59: ESDRAS: 05/09/2025 G&C SAS: 25/08/2025 VIOTEC SAS: 25/08/2025 PAECIA SAS: 09/09/2025 | N59: NO
A60: 3.2.15 (ANEXO 5) | B60: Documentación para acreditar la implementación del sistema de gestión de seguridad en el trabajo (SG-SST): encontrándose una calificación Aceptable (85%) | C60: SI | D60: SI | E60: 381-419 | F60: Evaluación satisfactoria | G60: NO | H60: SI | I60: SI | J60: SI | K60: SI | L60: 1486-1613 | M60: Evaluación satisfactoria | N60: NO
A61: 3.2.21 | B61: Certificado Registro de Deudores Alimentarios Morosos- REDAM (Con fecha no anterior a 30 días calendario 19/08/2025). | C61: SI | D61: SI | E61: UE: 468 SC: 470 | F61: UE: 01/09/2025 SC: 23/08/2025 | G61: NO | H61: SI | I61: SI | J61: SI | K61: SI | L61: ESDRAS: 1617 G&C SAS: 1618 VIOTEC SAS: 1615 PAECIA SAS: 1616 | M61: ESDRAS: 05/09/2025 G&C SAS: 25/08/2025 VIOTEC SAS: 25/08/2025 PAECIA SAS: 02/09/2025 | N61: NO
A62: 3.2.22 (ANEXO N° 24) | B62: Formato de autorización de tratamiento de datos personales conforme a la ley 1581 de 2012 y el decreto 1074 de 2015 | C62: SI | D62: SI | E62: UE: 476-478 SC: 480-481 | F62: Ninguna | G62: NO | H62: SI | I62: SI | J62: SI | K62: SI | L62: ESDRAS: 1628-1629 G&C SAS: 1620-1622 VIOTEC SAS: 1623-1625 PAECIA SAS: 1626-1627 | M62: Ninguna | N62: NO
A63: 3.2.23 | B63: Certificado de Reciprocidad: Si el proponente es extranjero, podrá aportar el certificado de reciprocidad conforme a lo establecido en el artículo 20 de la Ley 80 de 1993. | C63: NA | D63: NA | E63: NA | F63: Ninguna | G63: NO | H63: N/A | I63: N/A | J63: N/A | K63: N/A | L63: N/A | M63: N/A | N63: NO
A64: 3.2.24 | B64: Diligenciar ANEXO N° 6 CERTIFICADO DE INHABILIDADES E INCOMPATIBILIDADES | C64: SI | D64: SI | E64: UE: 486 SC: 488 | F64: Ninguna | G64: NO | H64: SI | I64: SI | J64: SI | K64: SI | L64: ESDRAS: 1632 G&C SAS: 1633 VIOTEC SAS: 1631 PAECIA SAS: 1634 | M64: Ninguna | N64: NO
A65: 3.2.25 (+ADENDA N°3) | B65: Registro de productores y comercializadores de equipos tecnológicos para la vigilancia y seguridad privada, así: Los oferentes deberán aportar copia de la Resolución de inscripción en el Registro de Productores y Comercializadores de Equipos Tecnológicos para la Vigilancia y Seguridad Privada en las secciones de: instalación y comercialización: El certificado de Multas y Sanciones vigente deberá ser presentado por el oferente adjudicatario en el cual conste que no registra multas o sanciones impuestas por parte de la Superintendencia de Vigilancia y Seguridad Privada. En caso de que se trate de consorcios o uniones temporales o cualquier otro tipo de forma asociativa, la copia de la Resolución de inscripción en el registro de Productores o Comercializadores de Equipos tecnológicos para la Vigilancia y Seguridad Privada en las secciones de instalación y comercialización deberá ser aportado por uno de los integrantes del consorcio, unión temporal o forma asociativa. | C65: NO | D65: SI | E65: SC: 490-493 | F65: Ninguna | G65: NO | H65: NO | I65: SI | J65: SI | K65: NO | L65: ESDRAS: N/A G&C SAS: 1860-1862 VIOTEC SAS: 1863-1869 PAECIA SAS: N/A | M65: Ninguna | N65: NO
A66: 3.3.5 | B66: El participante deberá acreditar por lo menos cinco (5) años de trayectoria en el mercado, a través de la fecha de la matricula del registro mercantil sede principal. ASI mismo deberá diligenciar el ANEXO N°-11 TRAYECTORIA. En caso de que el oferente se presente como consorcio o unión temporal o cualquier forma asociativa, cada uno de los que conforman la misma, deberá acreditar este requisito (ANEXO N°-11) | C66: SI | D66: SI | E66: UE 645,646-656 (22/08/2025) SC:658,659-663 (5/09/2025) | F66: Ninguna | G66: NO | H66: SI | I66: SI | J66: SI | K66: SI | L66: ESDRAS: 1874 G&C SAS: 1872 VIOTEC SAS: 1871 PAECIA SAS: 1873 | M66: Ninguna | N66: NO
A67: 3.3.6 | B67: Cumplimiento compra publica innovadora, sostenible y socialmente responsable: | C67: SI | E67: 666-676 | F67: Ninguna | G67: NO | H67: SI | L67: 1876-1880 | M67: Ninguna | N67: NO
B68: ANEXO N°12 - COMPRA PÚBLICA INNOVADORA. | C68: SI | E68: 666,670,674 | F68: Ninguna | G68: NO | H68: SI | L68: 1876 | M68: Ninguna | N68: NO
B69: ANEXO N°13- COMPRA PÚBLICA SOSTENIBLE. | C69: SI | E69: 667,671,675 | F69: Ninguna | G69: NO | H69: SI | L69: 1878 | M69: Ninguna | N69: NO
B70: ANEXO N°14-COMPRA PÚBLICA SOCIALMENTE RESPONSABLE. | C70: SI | E70: 668,672,676 | F70: Ninguna | G70: NO | H70: SI | L70: 1880 | M70: Ninguna | N70: NO
A71: 3.2.3 | B71: ANEXO N° 22-CONFORMACIÓN DE PROPONENTE PRURAL | C71: SI | E71: 21-26 | F71: Ninguna | G71: NO | H71: SI | L71: 1109-1114 | M71: Ninguna | N71: NO
A72: RESULTADO | C72: HABILITADO | H72: HABILITADO

Sheet Técnico-Experiencia General
C1: UNION TEMPORAL GESTION INTEGRAL C5 | H1: UNON TEMPORAL SEGURIDAD VIPE 2025
A2: EXPERIENCIA HABILITANTE | C2: RUP (1) SEGURITECH COLOMBIA SAS | D2: RUP (9) UNION ELECTRICA SA | E2: SMMLV | F2: FOLIO | G2: Observacion | H2: RUP (32) VIOTEC SAS | I2: RUP (20-46-48) INGENIERIA Y TELEMATICA G&C | J2: RUP (80) ESDRAS MD INGENIERIA SAS | K2: RUP (34) PAECIA SAS | L2: SMMLV | M2: FOLIO | N2: Observacion | AL2: ALARMAR | AM2: ATLAS SEGURIDAD | AN2: CABLETRONICS S.A.S | AO2: CI2 | AP2: CORTE INGLES | AQ2: ENERGIZANDO INGENIERIA Y CONSTRUCCIÓN | AR2: G4S - SECURE SOLUTIONS COLOMBIA S.A. | AS2: INDRA DE COLOMBIA S.A.S | AT2: INSITEL | AU2: ISEC | AV2: MELTEC COMUNICACIONES S.A | AW2: NEC DE COLOMBIA | AX2: PROSEGUR | AY2: SITECSYS | AZ2: SONDA DE COLOMBIA | BA2: TIC COLOMBIA S.A.S | BB2: CURACAO DE COLOMBIA | BC2: SECURITY VIDEO EQUIPMENT | BD2: SEGURITECH | BE2: ITELCA | BF2: CIS
B3: Experiencia General Habilitante
B4: experiencia en mínimo uno (1) y máximo cuatro (4) contratos certificados en papel membrete ejecutados y terminados, por un valor que sumado sea igual o superior al 70% del presupuesto oficial inicial, esto es OCHENTA Y NUEVE MIL (89.000) SMMLV, cuyo objeto y/o alcance y/o actividades estén relacionados con lo siguiente | G4: CUMPLE | L4: =19892.58+23162.9153 -> 43055.4953 | N4: 1616-1756
A5: 3.3.1.1 | B5: Experiencia en implementación complejos de seguridad
B6: El proponente deberá acreditar la experiencia general con la presentación de una (1) certificación de contratos con entidades públicas, iniciados y terminados dentro de los últimos 15 años, | D6: si | F6: 499 | I6: si | N6: 1616-1756
B7: cuyo objeto y/o alcance y/o actividades incluya la implementación y/o construcción y puesta en funcionamiento de: Centros de comando y control para seguridad ciudadana y/o centros de emergencia y seguridad para seguridad ciudadana y/o centros de monitoreo para seguridad ciudadana y | D7: si | F7: 499 | I7: si | N7: 1616-1756
B8: que no sea inferior a 15.000 SMMLV, | D8: si | E8: 44613.81 | F8: 499 | I8: si | N8: 1616-1756
B9: la cual deberá estar debidamente registrada en el Registro Único de Proponentes-RUP. | D9: si | I9: si | N9: 1616-1756
A10: 3.3.1.2 | B10: Experiencia en Construcción de Edificaciones institucionales de alta complejidad
B11: El proponente deberá acreditar la experiencia general con la presentación de una (1) certificación de contratos con entidades públicas y/o privadas tales como Hospitales, colegios, centros comerciales, cetro de comando y control, c3, c4, c5, | D11: si | F11: 503-526 | I11: si | J11: si | N11: 1616-1756
B12: iniciados y terminados dentro de los últimos 15 años, | D12: si | F12: 503-526 | I12: si | J12: si | N12: 1616-1756
B13: cuyo objeto y/o alcance y/o actividades incluya la construcción y/o adecuación de edificios institucionales de alta complejidad públicos y/o privados | D13: si | F13: 503-526 | I13: si | J13: si | N13: 1616-1756
B14: y que no sea inferior a 30000 SMMLV | D14: si | E14: 1462691.6 | F14: 503-526 | I14: si | J14: si | L14: =48130.34*0.7098 -> 34162.91533 | N14: 1616-1756
B15: SMMLV, la cual deberá estar debidamente registrada en el Registro Único de Proponentes-RUP. | D15: si
A16: 3.3.1.3 | B16: Experiencia en Construcción en metros cuadrados
B17: El proponente deberá acreditar la experiencia general con la presentación de una (1) certificación de un contrato iniciado y terminado dentro de los últimos 15 años | D17: si | F17: 503-526 | K17: si | N17: 1616-1756
B18: y que incluya que la construcción en metros cuadrados construidos sea mínima de trece mil 13.000m2. | D18: si | F18: 503-526 | G18: 13311,09m2 | K18: si | L18: 20035 | N18: 13205,79m2

Sheet Técnico-Experiencia Específica
E1: UNION TEMPORAL GESTION INTEGRAL C5 | I1: Observacion | J1: UNON TEMPORAL SEGURIDAD VIPE 2025 | O1: Observacion
A2: ITEM | B2: Experiencia General del Proponente | E2: RUP () SEGURITECH COLOMBIA SAS | F2: RUP (9) UNION ELECTRICA SA | G2: SMMLV | H2: FOLIO | J2: RUP (32) VIOTEC SAS | K2: RUP (20-46-48) INGENIERIA Y TELEMATICA G&C | L2: RUP (80) ESDRAS MD INGENIERIA SAS | M2: RUP (34) PAECIA SAS | N2: FOLIO
A3: 3.3.2 | B3: Experiencia específica en implementación de complejos de seguridad
B4: Con el fin de validar la experiencia en las actividades esenciales del contrato, el proponente deberá cumplir, a través de las certificaciones aportadas como requisito habilitante general, con las siguientes condiciones mínimas: (ANEXO N° 8 - RELACIÓN DE EXPERIENCIA ESPECÍFICA) Un mismo contrato deberá incluir la totalidad de las actividades de construcción y/o implementación y/o adecuación de un centro de comando y control para seguridad ciudadana y/o centro de emergencia y seguridad para la seguridad ciudadana y/o centro de monitoreo para la seguridad ciudadana y/o sala de control para la seguridd ciudadana que dentro de su alcance de obra incluya como mínimo | F4: si | H4: 530-533 | K4: si | L4: si | N4: 1696-1794
B5: Sala de visualización | E5: si | H5: 530-533 | N5: 1696-1794
B6: Puestos de trabajo y/o muebles y/o módulos para mínimo 40 operadores | E6: si | H6: 530-533 | K6: si | L6: si | N6: 1696-1794
B7: Sala de crisis | E7: si | H7: 530-533 | K7: si | L7: si | N7: 1696-1794
B8: Sala de reuniones y/o salas de capacitación y entrenamiento | E8: si | H8: 530-533 | K8: si | L8: si | N8: 1696-1794
H9: 530-533 | N9: 1696-1794
B10: Sistema de CCTV que incluya como mínimo 30 cámaras | E10: si | H10: 530-533 | K10: si | L10: si | N10: 1696-1794
B11: Talanqueras de acceso vehicular y/o control de acceso vehicular con reconocimiento de placas | E11: si | H11: 530-533 | K11: si | L11: si | N11: 1696-1794
B12: Sistema de control de acceso | E12: si | H12: 530-533 | N12: 1696-1794
B13: Red de voz y datos | E13: si | H13: 530-533 | K13: si | L13: si | N13: 1696-1794
B14: Iluminación de emergencia | E14: si | H14: 530-533 | K14: si | L14: si | N14: 1696-1794
B15: Equipos activos de networking y/o Swichtes | E15: si | H15: 530-533 | K15: si | L15: si | N15: 1696-1794
B16: Estaciones de trabajo | E16: si | H16: 530-533 | K16: si | L16: si | N16: 1696-1794
B17: Sistema de respaldo de energía (UPS y planta eléctrica) | E17: si | H17: 530-533 | K17: si | L17: si | N17: 1696-1794
B18: Sistema de detección y extinción de incendios | E18: si | H18: 530-533 | K18: si | L18: si | N18: 1696-1794
B19: Sistema de visualización en gran formato tipo Videowall de mínimo 12 metros X 2 metros y/o arreglo de mínimo 40 monitores | E19: si | H19: 530-533 | K19: si | L19: si | N19: 1696-1794
B20: VMS: Certificar el suministro e instalación de una solución de gestión de video y/o sistema de administración de video y/o Sistema de automatización BMS (Bulding Managment System). | E20: si | H20: 530-533 | K20: si | L20: si | N20: 1696-1794
B21: Enlace de comunicación inalámbrica de punto a punto y/o enlace de microondas Trunking | E21: si | H21: 530-533 | K21: si | L21: si | N21: 1696-1794
B22: Equipos activos de comunicaciones que provea como mínimo 500 puntos de red 10/100/1000 | E22: si | H22: 530-533 | K22: si | L22: si | N22: 1696-1794
B23: comunicaciones de Fibra Óptica | E23: si | H23: 530-533 | K23: si | L23: si | N23: 1696-1794
B24: Iluminación: Mínimo 200 luminarias | E24: si | H24: 530-533 | K24: si | L24: si | N24: 1696-1794
B25: Datacenter: Certificar la construcción y/o adecuación de un Datacenter de un área mínima de 20 m2 | E25: si | H25: 530-533 | K25: si | L25: si | N25: 1696-1794
B26: Sistema de respaldo ininterrumpido de potencia UPS | E26: si | H26: 530-533 | K26: si | L26: si | N26: 1696-1794
B27: Subestación Eléctrica | E27: si | H27: 530-533 | K27: si | L27: si | N27: 1696-1794
B28: Aire Acondicionado de confort | E28: si | H28: 530-533 | K28: si | L28: si | N28: 1696-1794
B29: Aire acondicionado de precisión | E29: si | H29: 530-533 | K29: si | L29: si
B30: Nota 1: Para la acreditación de la experiencia habilitante específica, el contrato debe estar inscrito en el RUP, como mínimo dos (2) de los siguientes códigos UNSPSC
A31: UNSPSC | B31: Iluminació n de interióres y artefactós | C31: 39111500 | E31: si | K31: si
A32: UNSPSC | B32: Cámaras | C32: 45121500 | E32: si | K32: si
A33: UNSPSC | B33: Equipó de vigilancia y detección | C33: 46171600 | E33: si | K33: si
A34: UNSPSC | B34: Serviciós de sistemas de seguridad | C34: 92121700 | E34: si | K34: si
A35: UNSPSC | B35: Servició de cónstrucció n de serviciós pu blicós especializadós | C35: 72121400 | E35: si | K35: si

Sheet Técnico-Personal
A1: 3.3.3 | B1: PERSONAL MÍNIMO REQUERIDO | D1: UNION TEMPORAL GESTION INTEGRAL C5 | F1: UNON TEMPORAL SEGURIDAD VIPE 2025
A2: 3.3.3.1 | B2: Director General de Proyectos y operaciones: | D2: UT1 | E2: Folios | F2: UT1 | G2: Folios
B3: Formación Profesional y Certificaciones: Ingeniero Civil y/o Ingeniero Electrónico y/o Ingeniero Electricista y/o Ingeniero de Sistemas y/o Ingeniero Electromecánico. | D3: si | E3: 537-554 | F3: si | G3: 1776-1792
B4: Deberá contar con especialización y/o maestría en Gerencia de Proyectos y/o Gestión de Proyectos y/o Magister en Ingeniería Civil | D4: si | E4: 537-554 | F4: si | G4: 1776-1792
B5: Deberá contar con certificación SCRUM MASTER y/o PMP vigente y/o especializacion en gerencia de proyectos | D5: si | E5: 537-554 | F5: si | G5: 1776-1792
B7: Experiencia General: Acreditar experiencia general no menor de quince (15) años, contada entre la fecha de expedición de la matrícula profesional y la fecha de presentación de ofertas del presente proceso. Para efectos de acreditación de la experiencia general se deberá aportar copia de la tarjeta profesional y del certificado de vigencia de la matricula profesional | D7: 2008-11-06 | E7: 537-554 | F7: 2008-04-01 | G7: 1776-1792
B9: Experiencia Específica: Acreditar experiencia específica no menor a diez (10) años como Director de Proyectos y/o Gerente de Proyectos y/o Director de Operaciones y/o Gerente de Operaciones. Para tal fin deberá presentar los certificados expedidos por las empresas contratantes, en las que acredite el requisito y la hoja de vida vigente. | D9: 11,79 años | E9: 537-554 | F9: 11,92 años | G9: 1776-1792
B11: Consentimiento del personal: Deberá aportar una carta de intención suscrita por la persona que acredita el requisito, donde certifican que tienen interés en realizar las actividades propias del contrato y conocen las implicaciones y actividades a desarrollar. | D11: si | E11: 537-554 | F11: si | G11: 1776-1792
A12: 3.3.3.2 | B12: Director de Tecnología: (evaludado desde el formato de experiencia)
B14: Formación Profesional y Certificaciones: Ingeniero Electrónico y/o Ingeniero Electricista y/o Ingeniero de Sistemas y/o Electromecánico y/o afines | D14: si | E14: 556-625 | F14: si | G14: 1793-1832
B15: Deberá contar con Certificación PMP Vigente. | D15: si | F15: si | G15: 1793-1832
B17: Experiencia General: Acreditar experiencia general no menor de quince (15) años, contada entre la fecha de expedición de la matrícula profesional y la fecha de presentación de ofertas del presente proceso. Para efectos de acreditación de la experiencia general se deberá aportar copia de la tarjeta profesional y del certificado de vigencia de la matricula profesional | D17: 1994-07-28 | E17: 556-625 | F17: 2007-10-12 | G17: 1793-1832
B19: Experiencia Específica: Acreditar experiencia específica como Director de Tecnología y/o Gerente de Tecnología y/o Director de Proyectos y/o Gerente de Proyectos en mínimo cinco (5) proyectos de tecnología de seguridad ciudadana, los cuales contemplen | D19: si (8) | E19: 556-625 | F19: si (6) | G19: 1793-1832
B20: la construcción
B21: y/o implementación de sistemas de seguridad electrónica
B22: y/o sistema de 123
B23: y/o sistemas integrados de emergencia y seguridad
B24: y/o Salas de Monitoreo
B25: y/o Centros de Comando y Control
B27: Consentimiento del personal: Deberá aportar una carta de intención suscrita por la persona que acredita el requisito, donde certifican que tienen interés en realizar las actividades propias del contrato y conocen las implicaciones y actividades a desarrollar. | D27: si | F27: si | G27: 1793-1832
A28: 3.3.3.3 | B28: Profesional responsable de SG-SST (evaludado desde el formato de experiencia)
B30: Formación Profesional y Certificaciones: Profesional o profesional especializado en Salud y Seguridad en el trabajo SST con Licencia en Seguridad y Salud en el Trabajo vigente | D30: si | E30: 577-587 | F30: si | G30: 1833-1857
B31: y el curso de capacitación virtual de cincuenta (50) y/o veinte (20) horas. | D31: si | E31: 577-587 | F31: si | G31: 1833-1857
B33: Experiencia General: Acreditar experiencia general mínima de dos (2) años contados a partir de la obtención del título como Profesional o profesional especializado en Salud y Seguridad en el trabajo SST. Para efectos de acreditación de la experiencia general deberá presentar los certificados que acrediten el requisito y la hoja de vida vigente. | D33: si | E33: 577-587 | F33: 2020-11-18 | G33: 1833-1857
B35: Experiencia Específica: Deberá certificar al menos un (1) proyecto donde se haya trabajado panoramas de riesgo y gestión de incidentes para proyectos de: obra y/o seguridad ciudadana y/o videovigilancia ciudadana o afines". | D35: si | E35: 577-587 | F35: si | G35: 1833-1857
B37: Consentimiento del personal: Deberá aportar una carta de intención suscrita por la persona que acredita el requisito, donde certifican que tienen interés en realizar las actividades propias del contrato y conocen las implicaciones y actividades a desarrollar. | D37: si | E37: 577 | F37: si | G37: 1833-1857

Sheet Técnico- Cartas de fábrica
D1: UNION TEMPORAL GESTION INTEGRAL C5 | I1: UNON TEMPORAL SEGURIDAD VIPE 2025
B2: El proponente deberá aportar como mínimo 8 de las siguientes cartas de fábricas: | C2: Comentario | D2: SEGURITECH COLOMBIA SAS | E2: UNION ELECTRICA SA | F2: FABRICANTE | G2: Folio | H2: Observacion | I2: VIOTEC SAS | J2: INGENIERIA Y TELEMATICA G&C | K2: ESDRAS MD INGENIERIA SAS | L2: PAECIA SAS | M2: FABRICANTE | N2: Folio | O2: Observacion
A3: 1 | B3: Sistema de gestión de edificios | C3: selección | D3: 1 | E3: 0 | F3: Schneider | G3: 592 | I3: 0 | J3: 0 | K3: 0 | L3: 0
A4: 2 | B4: Sombrilla Security | C4: selección | D4: 0 | E4: 0 | I4: 0 | J4: 0 | K4: 0 | L4: 0
A5: 3 | B5: CCTV (LPR, Facial, Analítica, aprendizaje profundo) | C5: selección | D5: 1 | E5: 0 | F5: AXIS, ISS GENETEC | G5: 595 596 597 | I5: 1 | J5: 0 | K5: 0 | L5: 0 | M5: AXIS, ISS GENETEC | N5: 7 al 11
A6: 4 | B6: Audio Evacuación | C6: selección | D6: 1 | E6: 0 | F6: KEENFINTY | G6: 603 | I6: 1 | J6: 0 | K6: 0 | L6: 0 | M6: KEENFINTY | N6: 13 a 15
A7: 5 | B7: Equipamiento Multimedia | C7: selección | D7: 0 | E7: 0 | I7: 0 | J7: 0 | K7: 0 | L7: 0
A8: 6 | B8: Lectoras Sistema control acceso | C8: selección | D8: 1 | E8: 0 | G8: 606 | I8: 1 | J8: 0 | K8: 0 | L8: 0 | M8: IDEMIA | N8: 17
A9: 7 | B9: Controladora sistema control acceso | C9: selección | D9: 1 | E9: 0 | F9: AXIS | G9: 608 | I9: 1 | J9: 0 | K9: 0 | L9: 0 | M9: AXIS | N9: 19
A10: 8 | B10: Máquina de Rayos X | C10: selección | D10: 1 | E10: 0 | F10: ASTROPHYSICS | G10: 611 | I10: 0 | J10: 1 | K10: 0 | L10: 0 | M10: PROTACTICS | N10: 21
A11: 9 | B11: Arco detector de metales | C11: selección | D11: 0 | E11: 0 | I11: 0 | J11: 0 | K11: 0 | L11: 0
A12: 10 | B12: Talanquera/Road Blockers | C12: selección | D12: 1 | E12: 0 | F12: CAME | G12: 614 | I12: 0 | J12: 1 | K12: 0 | L12: 0 | M12: CAME | N12: 23 24
A13: 11 | B13: Torniquetes | C13: selección | D13: 1 | E13: 0 | F13: WOLPAC | G13: 617 | I13: 0 | J13: 1 | K13: 0 | L13: 0 | M13: WOLPAC CAME | N13: 26 27 28
A14: 12 | B14: Radares sistema de intrusión | C14: selección | D14: 1 | E14: 0 | F14: AXIS | G14: 620 | I14: 1 | J14: 0 | K14: 0 | L14: 0 | M14: AXIS | N14: 30
A15: 13 | B15: Panel, sensores sistema de intrusión | C15: selección | D15: 1 | E15: 0 | F15: AXIS | G15: 623 | I15: 1 | J15: 0 | K15: 0 | L15: 0 | M15: AXIS | N15: 32
A16: 14 | B16: Sistema de gestión de visitantes | C16: selección | D16: 1 | E16: 0 | F16: WELCOME | G16: 626 | I16: 1 | J16: 0 | K16: 0 | L16: 0 | M16: WELCOME | N16: 34 35
A17: 15 | B17: Enlace Inalámbrico | C17: selección | D17: 0 | E17: 0 | I17: 0 | J17: 0 | K17: 0 | L17: 0 | M17: TRANSCELESTIAL | N17: 37 | O17: No se evidencia en la carta que es un canal autorizado, para la comercialización y/o adquisición, instalación y puesta a punto, soporte y mantenimiento de los equipos sobre los cuales están anexos en la ficha técnica.
A18: 16 | B18: VideoWall | C18: Obligatoria | D18: 1 | E18: 0 | F18: UNILUMIN | G18: 629 | I18: 1 | J18: 0 | K18: 0 | L18: 0 | M18: UNILUMIN | N18: 39 46
A19: 17 | B19: Controladora Videowall | C19: Obligatoria | D19: 1 | E19: 0 | F19: JUPITER | G19: 634 | I19: 1 | J19: 0 | K19: 0 | L19: 0 | M19: JUPITER | N19: 42 48
A20: 18 | B20: Muebles especializado | C20: selección | D20: 1 | E20: 0 | F20: GESAB | G20: 637 | I20: 1 | J20: 0 | K20: 0 | L20: 0 | M20: GESAB | N20: 44
A22: a | B22: carta emitida por cada una de las fábricas de los subsistemas presentados dirigida al proceso, donde se indique que el proponente cuenta con personal certificado para realizar la instalación, configuración, puesta a punto y mantenimiento.
A23: b | B23: carta de cada uno de los fabricantes de los subsistemas presentados dirigida al presente proceso: donde certifique que el OFERENTE es un canal autorizado, para la comercialización y/o adquisición, instalación y puesta a punto, soporte y mantenimiento de los equipos sobre los cuales están anexos en la ficha técnica.
A24: c | B24: Carta dirigía por los fabricantes presentados a un (1) mayorista donde indica que es un canal autorizado de distribución
A25: d | B25: Carta de un mayorista donde indica que respaldara financieramente el flujo del proyecto para los subsistemas listados
A26: e1 | B26: Carta de fabricante de VideoWall existente que certifique la compatibilidad en la ampliación del sistema existente, el cual está definido en el anexo de especificaciones técnicas. | D26: si | F26: UNILUMIN | G26: 642
A27: e2 | B27: Carta de fabricante de Controladora de VideoWall existente que certifique la compatibilidad en la ampliación del sistema existente, el cual está definido en el anexo de especificaciones técnicas. | D27: si | F27: JUPITER | G27: 640
A28: f | B28: El proponente deberá diligenciar el ANEXO N° 10 CARTAS DE FÁBRICA | D28: si

Sheet Financiero
A2: UNIÓN TEMPORAL GESTIÓN INTEGRAL C5 | B2: Índice de liquidez | C2: Nivel de endeudamiento | D2: Razón de Cobertura | E2: Rentabilidad sobre el Patrimonio | F2: Rentabilidad sobre el Activo | G2: Capital de Trabajo
B3: mayor o igual a | C3: menor o igual | D3: mayor o igual a | E3: mayor o igual a | F3: mayor o igual a | G3: mayor o igual a
B4: 1.80 | C4: 0.75 | D4: 2.0 | E4: 0.07 | F4: 0.05 | G4: $ 70,000,000,000
B5: 3.28 | C5: 0.40 | D5: 2.89 | E5: 0.09 | F5: 0.05 | G5: $ 90,311,331,030
B6: =B5>=B4 -> TRUE | C6: =C5<=C4 -> TRUE | D6: =D5>=D4 -> TRUE | E6: =E5>=E4 -> TRUE | F6: =F5>=F4 -> TRUE | G6: =G5>=G4 -> TRUE
A10: UNIÓN TEMPORAL SEGURIDAD VIPE 2025 | B10: Índice de liquidez | C10: Nivel de endeudamiento | D10: Razón de Cobertura | E10: Rentabilidad sobre el Patrimonio | F10: Rentabilidad sobre el Activo | G10: Capital de Trabajo
B11: mayor o igual a | C11: menor o igual | D11: mayor o igual a | E11: mayor o igual a | F11: mayor o igual a | G11: mayor o igual a
B12: 1.80 | C12: 0.75 | D12: 2.0 | E12: 0.07 | F12: 0.05 | G12: $ 70,000,000,000
B13: 3.51 | C13: 0.37 | D13: 7.39 | E13: 0.09 | F13: 0.06 | G13: $ 75,834,988,874
B14: =B13>=B12 -> TRUE | C14: =C13<=C12 -> TRUE | D14: =D13>=D12 -> TRUE | E14: =E13>=E12 -> TRUE | F14: =F13>=F12 -> TRUE | G14: =G13>=G12 -> TRUE

Sheet Ponderables
A2: Criterio | B2: Puntaje Máximo | D2: UT Ci2 - SP Ingenieria & Constructores | E2: UNION TEMPORAL GESTION INTEGRAL C5 | F2: UNON TEMPORAL SEGURIDAD VIPE 2025
A3: Factor Técnico | B3: 535 | D3: ='Factor técnico'!#REF! ->  | E3: ='Factor técnico'!D22 -> 510 | F3: ='Factor técnico'!G22 -> 353
A4: Factor Económico (Precio ) | B4: 353 | D4: =Precio!B21 -> 0 | E4: =Precio!C21 -> 352 | F4: =Precio!D21 -> 353
A5: Estímulo a la industria Nacional Colombiana | B5: 100 | D5: =+'Estímulo-Discap-Empren'!#REF! ->  | E5: ='Estímulo-Discap-Empren'!E4 -> 100 | F5: ='Estímulo-Discap-Empren'!H4 -> 100
A6: Personal con discapacidad | B6: 10 | D6: =+'Estímulo-Discap-Empren'!#REF! ->  | E6: ='Estímulo-Discap-Empren'!E5 -> 10 | F6: ='Estímulo-Discap-Empren'!H5 -> 10
A7: Emprendimientos y empresas de mujeres | B7: 2 | D7: =+'Estímulo-Discap-Empren'!#REF! ->  | E7: ='Estímulo-Discap-Empren'!E6 -> 2 | F7: ='Estímulo-Discap-Empren'!H6 -> 2
A8: TOTAL PUNTOS | B8: =B3+B4+B5+B6+B7 -> 1000 | D8: =D3+D4+D5+D6+D7 ->  | E8: =E3+E4+E5+E6+E7 -> 974 | F8: =F3+F4+F5+F6+F7 -> 818
B9: =MAX(D8:F8) -> 

Sheet Precio
B2: UT Ci2 - SP Ingenieria & Constructores | C2: UNION TEMPORAL GESTION INTEGRAL C5 | D2: UNON TEMPORAL SEGURIDAD VIPE 2025 | E2: P. oficial
B3: $ 234,241,011,864 | C3: =233932237645 -> $ 233,932,237,645 | D3: =233358134203 -> $ 233,358,134,203 | E3: =F3+G3 -> $ 233,986,523,216 | F3: $ 180,996,349,096 | G3: $ 52,990,174,120
A4: TECHO | B4: =B3<$E$3 -> FALSE | C4: =C3<$E$3 -> TRUE | D4: =D3<$E$3 -> TRUE
A5: PISO | B5: =B3>$E$5 -> TRUE | C5: =C3>$E$5 -> TRUE | D5: =D3>$E$5 -> TRUE | E5: =E3-E3*5% -> $ 222,287,197,055
B6: =$E$3-B3 -> -$ 254,488,648 | C6: =$E$3-C3 -> $ 54,285,571 | D6: =$E$3-D3 -> $ 628,389,013
B7: =B6/E3 -> -0.11% | C7: =C6/E3 -> 0.02% | D7: =D6/E3 -> 0.27%
A11: 1 | B11: MENOR VALOR
B12: =B3 -> $ 234,241,011,864 | C12: $ 233,932,237,645 | D12: $ 233,358,134,203
A13: Puntos | B13: 353 | C13: 353 | D13: 353
A15: PUNTAJE | B15: 0 | C15: =C13*MIN($C$3:$D$3)/C12 -> $ 352 | D15: =D13*MIN($C$3:$D$3)/D12 -> $ 353
A21: PUNTAJE | B21: =B15 -> 0 | C21: =C15 -> $ 352 | D21: =D15 -> $ 353

Sheet Factor técnico
A2: CALIDAD (535 PUNTOS)
A3: ITEM | B3: FACTOR TÉCNICO | C3: PUNTAJE MAXIMO EVALUABLE | D3: UNION TEMPORAL GESTION INTEGRAL C5 | E3: FOLIO | F3: OBSERVACIONES | G3: UNON TEMPORAL SEGURIDAD VIPE 2025 | H3: FOLIOS | I3: OBSERVACIONES2
A4: A | B4: Contratos de Seguridad ciudadana de construcción y/o adecuación y/o implementación de centros de monitoreo y/o salas de monitoreo y/o salas integradas de emergencia y seguridad (SIES) y/o centros de comando y control en Colombia | C4: 80 | D4: 80 | E4: 1660-1869 | G4: 80 | H4: 1888-1970
A5: B | B5: Contratos de Seguridad ciudadana de construcción y/o adecuación y/o implementación de centros de monitoreo y/o salas de monitoreo y/o salas integradas de emergencia y seguridad (SIES) y/o centros de comando y control en diferentes municipios de Colombiaa | C5: 30 | D5: 30 | E5: 1870-1872,11667-1780 | G5: 30 | H5: 1971-1977
A6: C | B6: Contratos de suministro y/o instalación y/o implementación de sistemas de proyección y/o visualización de gran formato (Video Wall), en edificaciones institucionales y/o públicas y/o gubernamentales | C6: 50 | D6: 50 | E6: 1875-1955 | G6: 20 | H6: 1978-1984
A7: D | B7: Contratos de seguridad ciudadana de suministro, instalación y configuración de puntos de cableado estructurado | C7: 30 | D7: 30 | E7: 1957-1959 | G7: 25 | H7: 1985-1995 | I7: No se tienen encuenta los patch cord
A8: E | B8: Contratos de Suministro, Instalación y puesta en funcionamiento de redes de comunicación en edificaciones institucionales y/o públicas y/o gubernamentales | C8: 24 | D8: 24 | E8: 1960-1963 | G8: 18 | H8: 1996-2021
A9: F | B9: Contratos de seguridad ciudadana, de soluciones de gestión de video y/o sistemas de administración de video (VMS) | C9: 12 | D9: 12 | E9: 1969-1972 | G9: 3 | H9: 2022-2025
A10: G | B10: Contratos cuyo objeto, alcance o actividades contengan: Suministro y/o instalación y/o integración de BMS (Business Managment System) y/o automatización, en edificaciones institucionales y/o públicas y/o gubernamentales | C10: 30 | D10: 30 | E10: 1973-1979 | G10: 30 | H10: 2026-2059
A11: H | B11: Contratos de Suministro e Instalación, de sistemas de voceo y/o megafonía y/o audio y/o sonido en edificaciones institucionales y/o públicas y/o estatales y/o gubernamentales | C11: 25 | D11: 25 | E11: 1980-2000 | G11: 15 | H11: 2060-2099 | I11: No se contabiliza el contrato No. 08811-2017, dado que no aporta acta de liquidación o acta de terminación
A12: I | B12: Contratos de seguridad ciudadana de suministro y/o construcción y/o adecuación de centros de monitoreo y/o salas de monitoreo y/o salas integradas de emergencia y seguridad (SIES) y/o centros de comando y control, que incluyan el suministro e instalación de lectoras biométricas y/o faciales y/o sistemas de identificación biométrica. | C12: 12 | D12: 12 | E12: 2001-2004 | G12: 12 | H12: 2100-2107
A13: J | B13: Contratos de seguridad ciudadana de construcción y/o adecuación de centros de monitoreo y/o salas de monitoreo y/o salas integradas de emergencia y seguridad (SIES) y/o centros de comando y control, que incluyan el suministro e instalación de CCTV interno | C13: 12 | D13: 12 | E13: 2005-2008 | G13: 3 | H13: 2108-2115
A14: K | B14: Contratos de construcción y/o adecuación y/o implementación de Data Center y/o Centros de Cableado y/o Salas de Cómputo, en edificaciones institucionales y/o públicas y/ estatales y/o gubernamentales, | C14: 50 | D14: 50 | E14: 2009-2017 | G14: 50 | H14: 2116-2177
A15: L | B15: Contratos de seguridad ciudadana de construcción y/o adecuación de centros de monitoreo y/o salas de monitoreo y/o salas integradas de emergencia y seguridad (SIES) y/o centros de comando y control, que incluyan el suministro, instalación y configuración de teléfonos y/o plantas telefónicas. | C15: 12 | D15: 12 | E15: 2018-2021 | G15: 9 | H15: 2195-2205
A16: M | B16: Contratos de seguridad ciudadana de construcción de centros de monitoreo y/o salas de monitoreo y/o salas integradas de emergencia y seguridad (SIES) y/o centros de comando y control en Colombia | C16: 55 | D16: 45 | E16: 2022-2059 | F16: No se comprobó la subestación ni los puestos de operadores | G16: 40 | H16: 2206-2259 | I16: En la certificación aportada no se evidencia lo siguiente: sala de receptores, planta diésel en cabina insonorizada, el equipo de bombeo de protección contra incendio se encontró fue por aspirado
A17: N | B17: Contratos de seguridad ciudadana de construcción de centros de monitoreo y/o salas de monitoreo y/o salas integradas de emergencia y seguridad (SIES) y/o centros de comando y control en función del área construida | C17: 50 | D17: 50 | E17: 2060-2063 | G17: 10 | H17: 2260-2303
A18: O | B18: Contratos de suministro, instalación y configuración de sistemas multimedia en edificaciones institucionales y/o públicas y/o estatales y/o gubernamentales | C18: 33 | D18: 27 | E18: 2064-2067 | F18: No se comprobó el sistema de audio evacuación y no se evidencia en el certificado que la puerta de enlace sea para al menos 10 espacios 1 por espacio | G18: 0 | H18: 2304-2311 | I18: El certificado aportado no permite verificar las cantidades mínimas exigidas para la puntuación
A19: P | B19: Contratos de suministro y/o instalación y/o configuración de sistemas especiales de intrusión y protección de accesos en edificaciones institucionales y/o públicas y/o estatales y/o gubernamentales | C19: 15 | D19: 9 | E19: 2063-2080 | F19: No se evidencia en el certificado aportado que el pasillo sea bidireccional | G19: 6 | H19: 2312-2328 | I19: No se evidencia en el certificado aportado que el pasillo sea bidireccional
A20: Q | B20: Contratos de suministro, instalación y/o puesta en funcionamiento de sistemas de iluminación en edificaciones institucionales y/o públicas y/o estatales y/o gubernamentales | C20: 15 | D20: 12 | E20: 2081-2086 | F20: No se evidencia el número de luminarias automatizadas | G20: 2 | H20: 2329-2343 | I20: No se evidencia el número de luminarias automatizadas, no se evidencia el fotocontrol
C21: =SUM(C4:C20) -> 535 | D21: =SUM(Tabla1[[#All],[UNION TEMPORAL GESTION INTEGRAL C5]])&"/535" -> 510/535 | G21: =SUM(Tabla1[UNON TEMPORAL SEGURIDAD VIPE 2025])&"/535" -> 353/535
D22: =SUM(Tabla1[UNION TEMPORAL GESTION INTEGRAL C5]) -> 510 | G22: =SUM(Tabla1[UNON TEMPORAL SEGURIDAD VIPE 2025]) -> 353
A25: 2
A28: TOTAL PUNTOS | C28: =C21 -> 535 | D28: =D22 -> 510 | G28: =G22 -> 353

Sheet Puntajes (hidden)
A1: ITEM | B1: A | C1: Puntos | D1: Puntos2 | E1: Puntos3 | F1: Puntos4 | G1: Puntos5
A2: A | B2: ='Factor técnico'!B4 -> Contratos de Seguridad ciudadana de construcción y/o adecuación y/o implementación de centros de monitoreo y/o salas de monitoreo y/o salas integradas de emergencia y seguridad (SIES) y/o centros de comando y control en Colombia | C2: ='Factor técnico'!C4 -> 80 | D2: 60 | E2: 40 | F2: 20 | G2: 0
B4: B | C4: Puntos | D4: Puntos2 | E4: Puntos3 | F4: Puntos4 | G4: Puntos5
A5: B | B5: ='Factor técnico'!B5 -> Contratos de Seguridad ciudadana de construcción y/o adecuación y/o implementación de centros de monitoreo y/o salas de monitoreo y/o salas integradas de emergencia y seguridad (SIES) y/o centros de comando y control en diferentes municipios de Colombiaa | C5: ='Factor técnico'!C5 -> 30 | D5: 20 | E5: 10 | F5: 0
B7: C | C7: Puntos | D7: Puntos2 | E7: Puntos3 | F7: Puntos4 | G7: Puntos5
A8: C | B8: ='Factor técnico'!B6 -> Contratos de suministro y/o instalación y/o implementación de sistemas de proyección y/o visualización de gran formato (Video Wall), en edificaciones institucionales y/o públicas y/o gubernamentales | C8: ='Factor técnico'!C6 -> 50 | D8: 25 | E8: 20 | F8: 0
B10: D | C10: Puntos | D10: Puntos2 | E10: Puntos3 | F10: Puntos4 | G10: Puntos5 | H10: Puntos6
A11: D | B11: ='Factor técnico'!B7 -> Contratos de seguridad ciudadana de suministro, instalación y configuración de puntos de cableado estructurado | C11: ='Factor técnico'!C7 -> 30 | D11: 25 | E11: 20 | F11: 15 | G11: 10 | H11: 0
B13: E | C13: Puntos | D13: Puntos2 | E13: Puntos3 | F13: Puntos4 | G13: Puntos5
A14: E | B14: ='Factor técnico'!B8 -> Contratos de Suministro, Instalación y puesta en funcionamiento de redes de comunicación en edificaciones institucionales y/o públicas y/o gubernamentales | C14: ='Factor técnico'!C8 -> 24 | D14: 18 | E14: 12 | F14: 6 | G14: 0
B16: F | C16: Puntos | D16: Puntos2 | E16: Puntos3 | F16: Puntos4 | G16: Puntos5
A17: F | B17: ='Factor técnico'!B9 -> Contratos de seguridad ciudadana, de soluciones de gestión de video y/o sistemas de administración de video (VMS) | C17: ='Factor técnico'!C9 -> 12 | D17: 9 | E17: 6 | F17: 3 | G17: 0
B19: G | C19: Puntos | D19: Puntos2 | E19: Puntos3 | F19: Puntos4 | G19: Puntos5 | H19: Puntos6 | I19: Puntos7
A20: G | B20: ='Factor técnico'!B10 -> Contratos cuyo objeto, alcance o actividades contengan: Suministro y/o instalación y/o integración de BMS (Business Managment System) y/o automatización, en edificaciones institucionales y/o públicas y/o gubernamentales | C20: ='Factor técnico'!C10 -> 30 | D20: 25 | E20: 20 | F20: 15 | G20: 10 | H20: 5 | I20: 0
B22: H | C22: Puntos | D22: Puntos2 | E22: Puntos3 | F22: Puntos4 | G22: Puntos5
A23: H | B23: ='Factor técnico'!B11 -> Contratos de Suministro e Instalación, de sistemas de voceo y/o megafonía y/o audio y/o sonido en edificaciones institucionales y/o públicas y/o estatales y/o gubernamentales | C23: ='Factor técnico'!C11 -> 25 | D23: 15 | E23: 10 | F23: 0
B25: I | C25: Puntos | D25: Puntos2 | E25: Puntos3 | F25: Puntos4 | G25: Puntos5
A26: I | B26: ='Factor técnico'!B12 -> Contratos de seguridad ciudadana de suministro y/o construcción y/o adecuación de centros de monitoreo y/o salas de monitoreo y/o salas integradas de emergencia y seguridad (SIES) y/o centros de comando y control, que incluyan el suministro e instalación de lectoras biométricas y/o faciales y/o sistemas de identificación biométrica. | C26: ='Factor técnico'!C12 -> 12 | D26: 8 | E26: 4 | F26: 0
B28: J | C28: Puntos | D28: Puntos2 | E28: Puntos3 | F28: Puntos4 | G28: Puntos5
A29: J | B29: ='Factor técnico'!B13 -> Contratos de seguridad ciudadana de construcción y/o adecuación de centros de monitoreo y/o salas de monitoreo y/o salas integradas de emergencia y seguridad (SIES) y/o centros de comando y control, que incluyan el suministro e instalación de CCTV interno | C29: ='Factor técnico'!C13 -> 12 | D29: 9 | E29: 6 | F29: 3 | G29: 0
B31: K | C31: Puntos | D31: Puntos2 | E31: Puntos3 | F31: Puntos4 | G31: Puntos5 | H31: Puntos6
A32: K | B32: ='Factor técnico'!B14 -> Contratos de construcción y/o adecuación y/o implementación de Data Center y/o Centros de Cableado y/o Salas de Cómputo, en edificaciones institucionales y/o públicas y/ estatales y/o gubernamentales, | C32: ='Factor técnico'!C14 -> 50 | D32: 25 | E32: 15 | F32: 10 | G32: 5 | H32: 0
B34: L | C34: Puntos | D34: Puntos2 | E34: Puntos3 | F34: Puntos4 | G34: Puntos5
A35: L | B35: ='Factor técnico'!B15 -> Contratos de seguridad ciudadana de construcción y/o adecuación de centros de monitoreo y/o salas de monitoreo y/o salas integradas de emergencia y seguridad (SIES) y/o centros de comando y control, que incluyan el suministro, instalación y configuración de teléfonos y/o plantas telefónicas. | C35: ='Factor técnico'!C15 -> 12 | D35: 9 | E35: 6 | F35: 3
B37: M | C37: Puntos | D37: Puntos2 | E37: Puntos3 | F37: Puntos4 | G37: Puntos5 | H37: Puntos52 | I37: Puntos53 | J37: Puntos54 | K37: Puntos55 | L37: Puntos552 | M37: Puntos553 | N37: Puntos5532
A38: M | B38: ='Factor técnico'!B16 -> Contratos de seguridad ciudadana de construcción de centros de monitoreo y/o salas de monitoreo y/o salas integradas de emergencia y seguridad (SIES) y/o centros de comando y control en Colombia | C38: ='Factor técnico'!C16 -> 55 | D38: 50 | E38: 45 | F38: 40 | G38: 35 | H38: 30 | I38: 25 | J38: 20 | K38: 15 | L38: 10 | M38: 5 | N38: 0
B40: N | C40: Puntos | D40: Puntos2 | E40: Puntos3 | F40: Puntos4 | G40: Puntos5 | H40: Puntos6
A41: N | B41: ='Factor técnico'!B17 -> Contratos de seguridad ciudadana de construcción de centros de monitoreo y/o salas de monitoreo y/o salas integradas de emergencia y seguridad (SIES) y/o centros de comando y control en función del área construida | C41: ='Factor técnico'!C17 -> 50 | D41: 40 | E41: 30 | F41: 20 | G41: 10 | H41: 0
B43: O | C43: Puntos | D43: Puntos2 | E43: Puntos3 | F43: Puntos4 | G43: Puntos5 | H43: Puntos6 | I43: Puntos7 | J43: Puntos8 | K43: Puntos9 | L43: Puntos10 | M43: Puntos11 | N43: Puntos12
A44: O | B44: ='Factor técnico'!B18 -> Contratos de suministro, instalación y configuración de sistemas multimedia en edificaciones institucionales y/o públicas y/o estatales y/o gubernamentales | C44: ='Factor técnico'!C18 -> 33 | D44: 30 | E44: 27 | F44: 24 | G44: 21 | H44: 18 | I44: 15 | J44: 12 | K44: 9 | L44: 6 | M44: 3 | N44: 0
B46: P | C46: Puntos | D46: Puntos2 | E46: Puntos3 | F46: Puntos4 | G46: Puntos5 | H46: Puntos6
A47: P | B47: ='Factor técnico'!B19 -> Contratos de suministro y/o instalación y/o configuración de sistemas especiales de intrusión y protección de accesos en edificaciones institucionales y/o públicas y/o estatales y/o gubernamentales | C47: ='Factor técnico'!C19 -> 15 | D47: 12 | E47: 9 | F47: 6 | G47: 3 | H47: 0
B49: Q | C49: Puntos | D49: Puntos2 | E49: Puntos3 | F49: Puntos4 | G49: Puntos5 | H49: Puntos6 | I49: Puntos7 | J49: Puntos8 | K49: Puntos9 | L49: Puntos10 | M49: Puntos11 | N49: Puntos12 | O49: Puntos13 | P49: Puntos14 | Q49: Puntos15 | R49: Puntos16 | S49: Puntos17 | T49: Puntos18 | U49: Puntos19 | V49: Puntos20 | W49: Puntos21 | X49: Puntos22 | Y49: Puntos23 | Z49: Puntos24 | AA49: Puntos25 | AB49: Puntos26 | AC49: Puntos27 | AD49: Puntos28 | AE49: Puntos29 | AF49: Puntos30 | AG49: Puntos31
A50: Q | B50: ='Factor técnico'!B20 -> Contratos de suministro, instalación y/o puesta en funcionamiento de sistemas de iluminación en edificaciones institucionales y/o públicas y/o estatales y/o gubernamentales | C50: ='Factor técnico'!C20 -> 15 | D50: =Tabla183[[#This Row],[Puntos]]-0.5 -> 14.5 | E50: =Tabla183[[#This Row],[Puntos2]]-0.5 -> 14 | F50: =Tabla183[[#This Row],[Puntos3]]-0.5 -> 13.5 | G50: =Tabla183[[#This Row],[Puntos4]]-0.5 -> 13 | H50: =Tabla183[[#This Row],[Puntos5]]-0.5 -> 12.5 | I50: =Tabla183[[#This Row],[Puntos6]]-0.5 -> 12 | J50: =Tabla183[[#This Row],[Puntos7]]-0.5 -> 11.5 | K50: =Tabla183[[#This Row],[Puntos8]]-0.5 -> 11 | L50: =Tabla183[[#This Row],[Puntos9]]-0.5 -> 10.5 | M50: =Tabla183[[#This Row],[Puntos10]]-0.5 -> 10 | N50: =Tabla183[[#This Row],[Puntos11]]-0.5 -> 9.5 | O50: =Tabla183[[#This Row],[Puntos12]]-0.5 -> 9 | P50: =Tabla183[[#This Row],[Puntos13]]-0.5 -> 8.5 | Q50: =Tabla183[[#This Row],[Puntos14]]-0.5 -> 8 | R50: =Tabla183[[#This Row],[Puntos15]]-0.5 -> 7.5 | S50: =Tabla183[[#This Row],[Puntos16]]-0.5 -> 7 | T50: =Tabla183[[#This Row],[Puntos17]]-0.5 -> 6.5 | U50: =Tabla183[[#This Row],[Puntos18]]-0.5 -> 6 | V50: =Tabla183[[#This Row],[Puntos19]]-0.5 -> 5.5 | W50: =Tabla183[[#This Row],[Puntos20]]-0.5 -> 5 | X50: =Tabla183[[#This Row],[Puntos21]]-0.5 -> 4.5 | Y50: =Tabla183[[#This Row],[Puntos22]]-0.5 -> 4 | Z50: =Tabla183[[#This Row],[Puntos23]]-0.5 -> 3.5 | AA50: =Tabla183[[#This Row],[Puntos24]]-0.5 -> 3 | AB50: =Tabla183[[#This Row],[Puntos25]]-0.5 -> 2.5 | AC50: =Tabla183[[#This Row],[Puntos26]]-0.5 -> 2 | AD50: =Tabla183[[#This Row],[Puntos27]]-0.5 -> 1.5 | AE50: =Tabla183[[#This Row],[Puntos28]]-0.5 -> 1 | AF50: =Tabla183[[#This Row],[Puntos29]]-0.5 -> 0.5 | AG50: =Tabla183[[#This Row],[Puntos30]]-0.5 -> 0
C52: =SUM(C2:C50) -> 535

Sheet Estímulo-Discap-Empren
E1: UNION TEMPORAL GESTION INTEGRAL C5 | H1: UNON TEMPORAL SEGURIDAD VIPE 2025
A2: ITEM | B2: Criterios de Calidad | C2: PUNTAJE MAXIMO EVALUABLE | E2: UT2 | F2: FOLIO | G2: OBSERVACIONES | H2: UT3 | I2: FOLIO | J2: OBSERVACIONES
A4: A | B4: Estímulo a la industria Nacional Colombiana | C4: 100 | E4: 100 | F4: 2087-2109 | H4: 100 | I4: 2358-2389
A5: B | B5: Personal con discapacidad | C5: 10 | E5: 10 | F5: 2110-2122 | H5: 10 | I5: 2391-2400
A6: C | B6: Emprendimientos y empresas de mujeres | C6: 2 | E6: 2 | F6: 2126-2201 | H6: 2 | I6: 2402-2426
B7: TOTAL | C7: =SUM(C3:C6) -> 112
